bitfinex-derivatives/quotes_ETHF0:USTF0_20240923
["timestamp","ask_amount","ask_price","bid_price","bid_amount"]
[1727114033205,1.84830138,2668.5,2668.4,1.96973]
[1727114033407,0.37472,2668.5,2668.4,1.96973]
[1727114035413,2.35068187,2668.6,2668.5,0.37472]
[1727114035609,2.45197827,2668.8,2668.6,1.31147]
[1727114035610,1.47351727,2668.7,2668.6,1.31147]
[1727114035915,1.47351727,2668.8,2668.7,0.37469]
[1727114036216,1.47351727,2668.8,2668.7,0.75739]
[1727114036813,1.47351727,2668.8,2668.7,1.69412]
[1727114037012,1.82941727,2668.9,2668.8,0.37468]
[1727114037209,1.82941727,2668.9,2668.8,1.58468]
[1727114037517,1.82941727,2668.9,2668.8,1.97798]
[1727114038011,2.20407727,2668.9,2668.8,1.97798]
[1727114038808,2.32118187,2668.9,2668.6,0.37469]
[1727114039011,1.47320308,2668.7,2668.6,1.58469]
[1727114039220,0.3747,2668.7,2668.6,1.58469]
[1727114040020,1.84789308,2668.8,2668.7,0.37469]
[1727114040215,0.37469,2668.7,2668.6,1.58469]
[1727114040413,1.35673418,2668.7,2668.6,1.58469]
[1727114041213,1.84789308,2668.7,2668.6,1.58469]
[1727114041712,1.47320308,2668.8,2668.7,0.37469]
[1727114041912,2.69585187,2668.9,2668.8,0.37468]
[1727114041913,1.82910308,2668.9,2668.8,0.37468]
[1727114042305,2.20376308,2668.9,2668.8,0.37468]
[1727114042811,1.82910308,2668.9,2668.8,0.37468]
[1727114045319,0.3559,2668.9,2668.8,0.37468]
[1727114046122,0.73056,2668.9,2668.8,0.37468]
[1727114046325,2.57946308,2668.9,2668.8,0.37468]
[1727114046918,0.7316,2668.9,2668.8,0.37468]
[1727114047119,2.57946308,2668.9,2668.8,0.37468]
[1727114049320,2.20480308,2668.9,2668.8,0.37468]
[1727114049625,1.82910308,2668.9,2668.8,0.37468]
[1727114050318,2.20376308,2668.9,2668.8,0.37468]
[1727114053127,1.96528187,2669.2,2668.8,13.3182]
[1727114053337,0.98120631,2669.6,2669.5,0.37458]
[1727114053627,1.35299503,2669.7,2669.5,1.21]
[1727114053828,1.72755503,2669.7,2669.4,4.557378]
[1727114054025,0.98059503,2669.6,2669.5,1.21]
[1727114054225,1.35515503,2669.6,2669.5,42.01]
[1727114054427,1.35485725,2669.6,2669.5,42.01]
[1727114054628,5.10045725,2669.6,2669.5,40.8]
[1727114054832,4.12016,2669.6,2669.5,40.8]
[1727114055337,0.37458,2669.5,2669.4,3.2078]
[1727114055626,5.10128602,2669.5,2669.4,3.2078]
[1727114055831,5.10128602,2669.5,2669.4,44.0078]
[1727114056227,1.35488602,2669.5,2669.4,44.0078]
[1727114056431,4.12098,2669.5,2669.4,3.2078]
[1727114056631,0.37458,2669.5,2669.4,3.2078]
[1727114056835,4.12098,2669.5,2669.4,3.2078]
[1727114057927,0.37458,2669.5,2669.4,3.2078]
[1727114058831,0.37458,2669.5,2669.3,1.58461]
[1727114059133,0.7243,2669.4,2669.3,1.58461]
[1727114060230,4.56050602,2669.7,2669.6,0.37456]
[1727114060430,3.5802,2669.7,2669.6,1.58456]
[1727114060632,0.3724,2669.7,2669.6,1.58456]
[1727114061130,0.3687,2669.8,2669.7,0.37455]
[1727114062334,0.3687,2669.8,2669.6,1.58456]
[1727114063323,0.74324,2669.8,2669.6,1.58456]
[1727114063634,0.3687,2669.8,2669.6,1.58456]
[1727114063926,0.3732,2669.7,2669.6,1.58456]
[1727114066232,0.3687,2669.8,2669.7,0.37455]
[1727114066837,0.3616,2669.9,2669.8,0.37454]
[1727114067054,0.3616,2669.9,2669.8,1.58454]
[1727114067431,0.3616,2669.9,2669.8,1.96844]
[1727114074437,0.73612,2669.9,2669.8,1.96844]
[1727114074644,0.3616,2669.9,2669.8,1.96844]
[1727114075147,0.73612,2669.9,2669.8,1.58454]
[1727114075339,0.37454,2669.8,2669.6,3.2078]
[1727114075635,0.73613,2669.9,2669.8,1.21]
[1727114077445,0.73613,2669.9,2669.8,1.58454]
[1727114077640,0.3616,2669.9,2669.8,1.58454]
[1727114078746,0.37452,2670.0,2669.9,0.37452]
[1727114078945,0.74942,2670.0,2669.9,0.37452]
[1727114079241,0.74942,2670.0,2669.8,1.58453]
[1727114079542,0.37452,2669.9,2669.8,1.58453]
[1727114079743,0.74942,2670.0,2669.9,0.37452]
[1727114082940,0.74942,2670.0,2669.9,0.75702]
[1727114083338,0.3749,2670.0,2669.9,0.75702]
[1727114083540,0.74269,2670.1,2670.0,0.37451]
[1727114083840,0.3682,2670.1,2670.0,1.58451]
[1727114084440,0.74269,2670.1,2670.0,1.58451]
[1727114086747,0.74269,2670.1,2670.0,1.21]
[1727114086748,1.67893,2670.1,2670.0,1.21]
[1727114086954,0.37454,2669.8,2669.7,3.2078]
[1727114087148,0.37454,2669.8,2669.7,4.4178]
[1727114087547,0.93635,2669.8,2669.6,1.21]
[1727114087747,1.68133,2669.7,2669.6,1.21]
[1727114088042,1.68133,2669.7,2669.6,2.54]
[1727114088243,3.052415,2669.7,2669.6,2.54]
[1727114090061,3.052415,2669.7,2669.6,1.33]
[1727114090258,6.75571,2669.7,2669.6,1.33]
[1727114090459,0.93648,2669.5,2669.3,1.21]
[1727114090658,1.35408159,2669.4,2669.3,1.21]
[1727114090951,1.35408159,2669.4,2669.3,2.42]
[1727114090952,1.72118159,2669.4,2669.3,2.42]
[1727114092455,1.72118159,2669.4,2669.3,3.84]
[1727114092652,0.74169,2669.4,2669.3,3.84]
[1727114094452,0.74169,2669.4,2669.3,3.72]
[1727114095860,0.74169,2669.4,2669.3,4.09461]
[1727114096152,0.74169,2669.4,2669.3,3.72]
[1727114096757,0.74169,2669.4,2669.3,4.09461]
[1727114096956,0.98025246,2669.5,2669.4,0.37459]
[1727114097158,1.73111246,2669.6,2669.5,0.37458]
[1727114097650,1.35731626,2669.6,2669.5,0.37458]
[1727114098052,0.3763,2669.6,2669.5,1.69458]
[1727114098460,0.75086,2669.6,2669.5,1.69458]
[1727114098961,1.73187626,2669.6,2669.5,1.69458]
[1727114099257,0.75086,2669.6,2669.5,1.69458]
[1727114100664,0.3763,2669.6,2669.5,1.69458]
[1727114100961,0.75086,2669.6,2669.5,1.69458]
[1727114101964,2.66829626,2669.6,2669.5,1.32]
[1727114102160,0.37459,2669.4,2669.3,3.0046]
[1727114102352,1.35597184,2669.4,2669.3,3.0046]
[1727114102560,1.35597184,2669.4,2669.3,2.63]
[1727114103362,0.37459,2669.4,2669.3,2.63]
[1727114104866,0.37459,2669.4,2669.3,3.00461]
[1727114105061,0.37459,2669.4,2669.3,2.63]
[1727114105253,0.37459,2669.4,2669.3,3.00461]
[1727114105464,0.37459,2669.4,2669.3,2.63]
[1727114105664,0.37462,2669.2,2669.1,43.80463]
[1727114106257,0.73542,2669.2,2669.1,43.80463]
[1727114106459,0.73542,2669.2,2669.1,43.43]
[1727114107163,0.73542,2669.2,2669.1,43.80463]
[1727114109059,0.73542,2669.2,2669.1,43.43]
[1727114109263,1.67198,2669.2,2669.1,40.8]
[1727114110262,0.37466,2668.9,2668.8,3.00467]
[1727114110969,0.37466,2668.9,2668.8,43.80467]
[1727114111466,0.37466,2669.0,2668.9,0.37466]
[1727114111968,0.37466,2668.9,2668.8,43.80467]
[1727114112169,1.11806,2668.9,2668.8,43.80467]
[1727114112765,1.11806,2668.9,2668.8,43.43]
[1727114113163,1.11806,2668.9,2668.8,43.80468]
[1727114113570,1.11806,2668.9,2668.8,43.81468]
[1727114113774,0.3659,2668.9,2668.8,43.81468]
[1727114114164,0.37466,2669.0,2668.9,0.37466]
[1727114114869,0.3661,2669.1,2669.0,0.37465]
[1727114115066,0.3661,2669.1,2669.0,3.00465]
[1727114115267,1.10643,2669.2,2669.1,0.37463]
[1727114115669,1.10643,2669.2,2669.1,0.74343]
[1727114115871,1.10643,2669.2,2669.1,0.3688]
[1727114115872,2.08738521,2669.2,2669.1,0.3688]
[1727114116075,0.37463,2669.1,2669.0,3.00464]
[1727114117669,2.08737521,2669.2,2669.1,0.37463]
[1727114117877,1.10642,2669.2,2669.1,0.37463]
[1727114118264,1.10642,2669.2,2669.0,3.00464]
[1727114118265,0.37463,2669.1,2669.0,3.00464]
[1727114118970,1.10643,2669.2,2669.1,0.37463]
[1727114119469,5.12529521,2669.3,2669.2,0.37462]
[1727114119470,4.18875521,2669.3,2669.2,0.37462]
[1727114119678,3.2078,2669.3,2669.2,0.37462]
[1727114119972,3.58241,2669.3,2669.2,0.37462]
[1727114121666,3.2078,2669.3,2669.2,0.37462]
[1727114122779,3.58241,2669.3,2669.2,0.37462]
[1727114124577,3.58241,2669.3,2669.0,2.63]
[1727114124776,0.37466,2668.9,2668.8,40.81]
[1727114125079,3.2078,2669.0,2668.8,40.81]
[1727114125264,1.10746,2668.9,2668.8,40.81]
[1727114125669,1.10746,2668.9,2668.8,41.18468]
[1727114129583,1.10746,2668.9,2668.8,40.81]
[1727114129786,2.04412,2668.9,2668.8,0.01]
[1727114130174,0.98095521,2669.1,2669.0,0.37465]
[1727114130369,1.96191042,2669.3,2669.2,0.37462]
[1727114130370,1.74545521,2669.3,2669.2,0.37462]
[1727114130583,4.18875521,2669.4,2669.3,0.37461]
[1727114130792,3.2078,2669.4,2669.3,0.37461]
[1727114130973,1.36305521,2669.5,2669.1,1.29808]
[1727114130974,1.36305521,2669.5,2669.4,0.37459]
[1727114131170,1.36305521,2669.5,2669.4,3.00459]
[1727114132275,1.73763521,2669.5,2669.4,3.00459]
[1727114133083,1.72763521,2669.5,2669.4,3.00459]
[1727114133779,3.19906802,2669.5,2669.4,3.00459]
[1727114133978,0.74668,2669.5,2669.4,3.00459]
[1727114134283,2.21811281,2669.5,2669.4,3.00459]
[1727114135389,0.37459,2669.4,2669.3,0.3746]
[1727114135581,1.35620377,2669.4,2669.3,0.3746]
[1727114136989,1.3562156,2669.4,2669.3,0.3746]
[1727114137988,0.9816256,2669.4,2669.3,0.3746]
[1727114139485,1.3562156,2669.4,2669.3,0.3746]
[1727114139689,0.9816256,2669.4,2669.3,0.3746]
[1727114142388,1.3562156,2669.4,2669.3,0.3746]
[1727114142592,0.9816256,2669.4,2669.3,0.3746]
[1727114143285,1.3562156,2669.4,2669.3,0.3746]
[1727114143485,0.9816256,2669.4,2669.3,0.3746]
[1727114143678,1.3562156,2669.4,2669.3,0.3746]
[1727114145282,0.9816256,2669.4,2669.3,0.3746]
[1727114145483,2.21812281,2669.5,2669.4,0.37459]
[1727114145684,0.3746,2669.4,2669.3,0.3746]
[1727114145892,1.35639406,2669.4,2669.3,0.3746]
[1727114146194,0.3746,2669.4,2669.3,0.3746]
[1727114146393,1.35643145,2669.4,2669.3,0.3746]
[1727114147293,0.98183145,2669.4,2669.3,0.3746]
[1727114147508,2.21812281,2669.5,2669.1,4.54186272]
[1727114147688,0.98191042,2669.3,2669.2,0.37462]
[1727114149380,1.84602281,2669.4,2669.3,0.37461]
[1727114150691,1.47143281,2669.4,2669.3,0.37461]
[1727114150898,1.84602281,2669.4,2669.3,0.37461]
[1727114151594,1.47143281,2669.4,2669.3,0.37461]
[1727114152795,1.47143281,2669.4,2669.3,0.75931]
[1727114153199,1.84602281,2669.4,2669.3,0.75931]
[1727114153589,1.47143281,2669.4,2669.3,0.75931]
[1727114154282,1.84602281,2669.4,2669.3,1.96931]
[1727114155894,0.37459,2669.4,2669.3,1.96931]
[1727114158296,0.37459,2669.4,2669.3,1.58461]
[1727114158601,1.84602281,2669.4,2669.3,1.58461]
[1727114159303,0.37459,2669.4,2669.3,1.58461]
[1727114159600,1.84602281,2669.4,2669.3,1.58461]
[1727114160491,0.37459,2669.4,2669.3,1.58461]
[1727114160693,1.84353281,2669.5,2669.4,0.37459]
[1727114160900,1.47143281,2669.6,2669.5,0.37458]
[1727114161092,0.9819418,2669.6,2669.5,6.26663]
[1727114161289,0.98185283,2669.6,2669.5,5.33018]
[1727114161496,0.98185283,2669.7,2669.5,5.93087272]
[1727114161696,0.98185283,2669.7,2669.6,42.38456]
[1727114163202,2.23997281,2669.8,2669.6,42.38455]
[1727114163397,2.23997281,2669.8,2669.6,42.01]
[1727114163398,1.84598281,2669.7,2669.6,42.01]
[1727114163792,1.47143281,2669.7,2669.6,42.38456]
[1727114163993,1.37567119,2669.8,2669.6,42.01]
[1727114164198,1.37567119,2669.8,2669.7,0.37455]
[1727114165196,0.394,2669.8,2669.7,0.37455]
[1727114165398,1.75011652,2669.8,2669.6,42.38455]
[1727114165592,0.98157282,2669.7,2669.6,42.38455]
[1727114166105,1.75011282,2669.8,2669.7,0.37455]
[1727114166508,1.37548767,2669.8,2669.7,0.37455]
[1727114168402,0.394,2669.8,2669.7,0.37455]
[1727114169304,1.37548767,2669.8,2669.7,0.37455]
[1727114169500,0.98148767,2669.9,2669.8,0.37454]
[1727114169707,1.35600767,2669.9,2669.8,1.94644]
[1727114170002,0.98148767,2669.9,2669.8,1.94644]
[1727114170203,1.35600767,2669.9,2669.6,40.8]
[1727114170394,1.35600767,2669.9,2669.8,0.37454]
[1727114170590,0.37454,2669.8,2669.7,1.58454]
[1727114171091,1.96191042,2669.9,2669.4,0.3619]
[1727114171293,1.96191042,2669.9,2669.3,3.5925]
[1727114171294,1.47167382,2669.5,2669.3,3.5824]
[1727114171503,2.24020696,2669.4,2669.3,0.3746]
[1727114171693,2.24020696,2669.4,2669.3,42.3846]
[1727114174301,0.7682,2669.4,2669.3,42.3846]
[1727114174611,0.37461,2669.3,2669.2,1.21]
[1727114174799,2.2198973,2669.3,2669.2,1.21]
[1727114175103,2.2198973,2669.3,2668.9,3.2078]
[1727114175104,0.37465,2669.0,2668.9,3.2078]
[1727114175310,1.84751332,2669.0,2668.9,4.4178]
[1727114175899,1.13605,2669.0,2668.9,4.79246]
[1727114176102,0.7614,2669.0,2668.9,4.79246]
[1727114176402,1.13605,2669.0,2668.9,4.4178]
[1727114176905,1.13605,2669.0,2668.9,4.79246]
[1727114177110,2.60910351,2669.0,2668.9,4.79246]
[1727114177501,2.60910351,2669.0,2668.9,4.4178]
[1727114177996,2.11797943,2669.0,2668.9,4.4178]
[1727114178410,1.13605,2669.0,2668.9,4.4178]
[1727114178907,2.11797943,2669.0,2668.9,1.21]
[1727114179111,0.37466,2668.9,2668.8,42.14994272]
[1727114179300,0.3752,2668.9,2668.8,42.38467]
[1727114179910,0.3752,2668.9,2668.8,43.35994272]
[1727114182904,0.7614,2669.0,2668.8,43.35994272]
[1727114183211,0.98192943,2669.3,2669.2,0.37462]
[1727114183509,0.98192943,2669.4,2669.3,0.37461]
[1727114183700,0.37459,2669.4,2669.3,0.37461]
[1727114183899,1.3559787,2669.4,2669.3,0.37461]
[1727114184101,0.37459,2669.4,2669.2,1.58461]
[1727114184403,1.35599339,2669.3,2669.2,1.58461]
[1727114185306,0.37463,2669.1,2669.0,4.79244]
[1727114185702,1.35605616,2669.2,2669.1,0.37463]
[1727114186411,0.37463,2669.1,2669.0,4.79244]
[1727114186601,1.35605616,2669.2,2669.1,0.37463]
[1727114186912,0.37462,2669.2,2669.1,0.37463]
[1727114187617,0.98142616,2669.3,2669.2,0.37462]
[1727114187811,0.98142616,2669.3,2669.2,1.58462]
[1727114188511,1.84765351,2669.4,2669.2,1.58462]
[1727114188512,1.35590779,2669.4,2669.3,0.37461]
[1727114189016,0.98130779,2669.4,2669.3,0.37461]
[1727114191809,1.35589779,2669.4,2669.3,0.37461]
[1727114192011,1.35589779,2669.5,2669.3,0.37461]
[1727114192216,1.35589779,2669.5,2669.4,1.58459]
[1727114192418,0.37459,2669.5,2669.4,1.21]
[1727114192917,1.47305351,2669.6,2669.4,1.21]
[1727114193119,1.84762351,2669.6,2669.5,0.37458]
[1727114193521,2.40948351,2669.6,2669.3,0.3746]
[1727114193816,1.35585683,2669.4,2669.3,1.5846]
[1727114194111,0.37459,2669.4,2669.3,1.5846]
[1727114194506,1.35586471,2669.4,2669.3,1.5846]
[1727114194704,1.84649025,2669.5,2669.4,0.37459]
[1727114194905,0.37459,2669.4,2669.3,1.5846]
[1727114195122,1.35585222,2669.4,2669.3,1.5846]
[1727114195814,0.98126222,2669.4,2669.3,1.5846]
[1727114196114,1.35585222,2669.4,2669.3,1.5846]
[1727114196317,0.98126222,2669.4,2669.3,1.5846]
[1727114196904,0.98126222,2669.5,2669.4,0.37459]
[1727114197110,1.36286222,2669.6,2669.5,0.37458]
[1727114197312,0.3816,2669.6,2669.5,0.37458]
[1727114197516,0.75616,2669.6,2669.5,0.37458]
[1727114197716,1.73735978,2669.6,2669.5,0.37458]
[1727114198209,0.75616,2669.6,2669.5,0.37458]
[1727114198814,1.7373375,2669.6,2669.5,0.37458]
[1727114201317,0.75616,2669.6,2669.5,0.37458]
[1727114201615,0.37458,2669.5,2669.4,1.21]
[1727114201818,0.37459,2669.4,2669.3,1.5846]
[1727114202628,0.3883,2669.4,2669.3,1.5846]
[1727114203113,0.76289,2669.4,2669.3,1.5846]
[1727114203309,0.3883,2669.4,2669.3,1.9476]
[1727114204520,0.76289,2669.4,2669.3,1.9476]
[1727114204724,0.3883,2669.4,2669.3,1.9476]
[1727114204929,0.76289,2669.4,2669.3,1.9476]
[1727114205218,0.76289,2669.4,2669.3,0.7376]
[1727114205618,0.76289,2669.4,2669.3,1.9476]
[1727114206820,0.76289,2669.4,2669.3,1.5846]
[1727114209017,0.3883,2669.4,2669.3,1.5846]
[1727114210628,0.76289,2669.4,2669.3,1.5846]
[1727114211727,1.69938,2669.4,2669.3,1.21]
[1727114211934,0.93656,2669.2,2669.0,2.18473871]
[1727114212226,1.1301,2669.1,2669.0,1.21]
[1727114213429,1.31132,2668.9,2668.8,41.77473871]
[1727114213618,0.37469,2668.7,2668.6,0.97473871]
[1727114213824,0.3747,2668.6,2668.5,5.11711175]
[1727114214030,1.5149,2668.6,2668.5,45.91711175]
[1727114214328,1.5149,2668.6,2668.5,47.12711175]
[1727114215023,0.37472,2668.5,2668.4,0.97473871]
[1727114215222,0.98187734,2668.5,2668.2,1.58475]
[1727114215528,0.37475,2668.3,2668.2,1.21]
[1727114215723,0.37474,2668.4,2668.2,1.58475]
[1727114215919,0.37474,2668.4,2668.2,1.96145]
[1727114216129,0.98187734,2668.5,2668.2,1.96145]
[1727114216331,0.98187734,2668.5,2668.4,1.58473]
[1727114216632,0.37472,2668.5,2668.4,40.8]
[1727114217825,0.37472,2668.5,2668.4,41.17473]
[1727114218028,2.12207734,2668.6,2668.4,40.8]
[1727114218029,2.49678734,2668.6,2668.4,40.8]
[1727114218327,0.37472,2668.5,2668.4,40.8]
[1727114218533,2.12207734,2668.6,2668.4,41.17473]
[1727114218923,0.37472,2668.5,2668.4,41.17473]
[1727114219430,1.1402,2668.6,2668.4,41.17473]
[1727114219431,1.51491,2668.6,2668.5,0.37472]
[1727114220533,0.98187734,2668.9,2668.5,6.3772]
[1727114220834,1.1468,2668.9,2668.8,3.00468]
[1727114221928,1.52146,2668.9,2668.8,3.00468]
[1727114223431,0.37466,2669.0,2668.9,0.37466]
[1727114224323,0.37466,2668.9,2668.8,3.00467]
[1727114224730,0.37466,2668.9,2668.8,2.63]
[1727114224935,0.37469,2668.7,2668.6,2.9878]
[1727114225532,0.37468,2668.9,2668.8,0.37467]
[1727114225727,0.37466,2669.0,2668.9,0.37465]
[1727114226833,1.34557734,2669.1,2668.8,2.63]
[1727114227033,1.34557734,2669.1,2668.9,0.37465]
[1727114227034,0.37466,2669.0,2668.9,0.37465]
[1727114229849,2.09660734,2669.2,2669.1,0.37463]
[1727114230036,1.35137734,2669.3,2669.2,0.37462]
[1727114230232,0.3695,2669.3,2669.2,0.37462]
[1727114230437,0.74411,2669.3,2669.2,0.37462]
[1727114230634,0.3695,2669.3,2669.2,0.37462]
[1727114231146,0.74411,2669.3,2669.2,0.37462]
[1727114234141,0.3695,2669.3,2669.2,0.37462]
[1727114235244,1.36677734,2669.5,2669.3,0.37461]
[1727114235540,1.72993734,2669.7,2669.6,0.37456]
[1727114235731,1.13696,2669.7,2669.6,0.37456]
[1727114236153,0.7624,2669.7,2669.6,0.37456]
[1727114236442,1.13695,2669.7,2669.6,0.37456]
[1727114236845,1.13695,2669.7,2669.6,41.17456]
[1727114237038,0.7624,2669.7,2669.6,41.17456]
[1727114237342,1.13695,2669.7,2669.6,41.17456]
[1727114238545,0.7624,2669.7,2669.6,41.17456]
[1727114242355,0.7624,2669.7,2669.6,42.38456]
[1727114243261,1.13695,2669.7,2669.6,0.37456]
[1727114245354,0.37456,2669.6,2669.5,1.58457]
[1727114245552,0.37456,2669.6,2669.5,1.58458]
[1727114247558,2.33647042,2669.6,2669.5,1.58458]
[1727114248049,3.66069042,2669.7,2669.4,3.2078]
[1727114248255,1.84410592,2669.5,2669.4,3.2078]
[1727114248761,1.84410592,2669.5,2669.4,3.58239]
[1727114253284,1.84410592,2669.5,2669.4,0.37459]
[1727114253467,0.37458,2669.5,2669.4,0.37459]
[1727114257672,0.7624,2669.7,2669.6,0.37456]
[1727114257876,0.97972158,2669.9,2669.8,0.37454]
[1727114258169,2.09583158,2670.0,2669.9,0.37452]
[1727114258567,1.11611,2670.0,2669.8,0.37453]
[1727114258868,1.11612,2670.0,2669.9,0.37452]
[1727114259260,0.37452,2669.9,2669.8,0.37453]
[1727114260567,0.97972158,2669.9,2669.8,0.37453]
[1727114264572,0.97972158,2669.9,2669.8,0.76423]
[1727114265274,2.21112592,2670.0,2669.9,0.37452]
[1727114265469,2.21112592,2670.0,2669.9,1.58452]
[1727114266269,2.58563592,2670.0,2669.9,1.58452]
[1727114266877,2.21112592,2670.0,2669.9,1.58452]
[1727114267276,2.58563592,2670.0,2669.9,1.58452]
[1727114267970,2.21112592,2670.0,2669.9,1.58452]
[1727114268368,2.58563592,2670.0,2669.9,1.58452]
[1727114268574,0.98023208,2670.0,2669.9,1.58452]
[1727114268769,0.37451,2670.0,2669.9,1.58451]
[1727114268974,1.35474208,2670.0,2669.9,1.58451]
[1727114269580,1.35474208,2670.0,2669.9,1.21]
[1727114269767,0.37452,2669.9,2669.8,0.37453]
[1727114269972,2.10665208,2669.9,2669.8,0.37453]
[1727114271182,1.73213208,2669.9,2669.8,0.37453]
[1727114271381,2.10665208,2669.9,2669.8,0.37453]
[1727114272082,1.73213208,2669.9,2669.8,0.37453]
[1727114272573,2.10665208,2669.9,2669.8,0.37453]
[1727114273181,1.73213208,2669.9,2669.8,0.37453]
[1727114273871,2.10665208,2669.9,2669.8,0.37453]
[1727114274278,0.37454,2669.8,2669.7,5.09455]
[1727114274480,0.37455,2669.7,2669.6,1.21]
[1727114274779,0.37456,2669.6,2669.5,0.37457]
[1727114274980,1.72163728,2669.7,2669.6,0.37456]
[1727114275368,1.34707728,2669.7,2669.6,0.37456]
[1727114275571,1.34707728,2669.7,2669.6,0.76446]
[1727114276284,1.72162728,2669.7,2669.6,0.76446]
[1727114277785,1.34707728,2669.7,2669.6,0.76446]
[1727114278288,1.34707728,2669.7,2669.6,1.73919871]
[1727114278585,0.98127728,2669.7,2669.6,1.73919871]
[1727114279571,1.35581728,2669.8,2669.7,0.37455]
[1727114279777,1.35581728,2669.8,2669.7,1.58455]
[1727114280183,0.98127728,2669.8,2669.7,1.58455]
[1727114280986,0.98127728,2669.8,2669.7,2.5633321]
[1727114281279,0.98127728,2669.8,2669.7,1.58455]
[1727114281584,2.57965592,2669.9,2669.8,0.37454]
[1727114282781,2.20512592,2669.9,2669.8,0.37454]
[1727114283080,2.20512592,2669.9,2669.8,2.2896721]
[1727114283081,1.33982285,2669.9,2669.8,2.2896721]
[1727114283278,0.98192285,2669.9,2669.8,1.3533221]
[1727114283491,1.46952592,2669.9,2669.8,0.37454]
[1727114283783,2.33642042,2670.0,2669.9,0.37452]
[1727114283973,2.33642042,2670.0,2669.9,1.58452]
[1727114284370,2.33642042,2670.0,2669.5,1.46290908]
[1727114284371,10.12531042,2670.0,2669.5,1.46290908]
[1727114284581,0.37459,2669.4,2669.1,5.2263821]
[1727114284791,0.37462,2669.2,2669.1,0.74333]
[1727114284971,0.37463,2669.1,2669.0,2.5634221]
[1727114285173,1.84784469,2669.1,2669.0,1.58464]
[1727114285374,1.84784469,2669.1,2669.0,42.38464]
[1727114285577,0.37463,2669.1,2669.0,42.38464]
[1727114285779,1.84784469,2669.1,2669.0,42.38464]
[1727114286388,0.37463,2669.1,2669.0,41.17464]
[1727114286584,0.37465,2669.0,2668.9,3.6087821]
[1727114286783,0.37466,2668.9,2668.8,1.3474821]
[1727114286982,0.98188534,2669.0,2668.9,0.37466]
[1727114286983,1.35654534,2669.0,2668.9,0.37466]
[1727114287291,1.35654534,2669.0,2668.8,42.25670242]
[1727114287292,0.37466,2668.9,2668.8,42.1534521]
[1727114287582,1.35655824,2669.0,2668.9,0.37466]
[1727114287887,1.35655824,2669.0,2668.9,3.00466]
[1727114288788,1.35655824,2669.0,2668.8,41.17467]
[1727114288789,0.37466,2668.9,2668.8,41.17467]
[1727114289591,0.37466,2668.9,2668.8,40.8]
[1727114290092,0.37466,2668.9,2668.8,41.17468]
[1727114290790,0.37466,2668.9,2668.8,41.7787821]
[1727114291586,0.37466,2668.9,2668.8,40.8]
[1727114291785,0.37466,2668.9,2668.8,42.1534621]
[1727114293192,0.74296,2669.0,2668.9,0.37466]
[1727114297489,0.37463,2669.2,2668.9,7.31306]
[1727114297687,0.37463,2669.2,2669.1,0.37462]
[1727114306290,0.37463,2669.2,2669.1,1.58462]
[1727114307291,0.37466,2669.0,2668.9,0.37466]
[1727114307492,0.37466,2669.0,2668.9,1.97306]
[1727114308395,0.37464,2669.2,2669.1,0.37462]
[1727114308592,1.12722,2669.3,2669.2,0.37462]
[1727114308789,0.3769,2669.3,2669.2,0.37462]
[1727114308993,0.3846,2669.4,2669.3,0.37461]
[1727114308994,0.7592,2669.4,2669.3,0.37461]
[1727114312289,0.7592,2669.4,2669.0,1.31012]
[1727114312290,0.37462,2669.3,2669.2,0.37461]
[1727114313899,1.74110824,2669.4,2669.3,0.37461]
[1727114315104,1.74110824,2669.4,2669.3,0.76361]
[1727114316500,0.98190824,2669.4,2669.3,0.76361]
[1727114316690,1.35649824,2669.4,2669.3,0.76361]
[1727114317595,0.98190824,2669.4,2669.3,1.70013]
[1727114317905,2.10418824,2669.5,2669.4,0.37459]
[1727114319506,1.12228,2669.5,2669.4,0.37459]
[1727114320500,2.59549469,2669.5,2669.4,0.37459]
[1727114320905,2.1034141,2669.5,2669.4,0.37459]
[1727114322406,0.9811341,2669.5,2669.4,0.37459]
[1727114322603,0.9811341,2669.6,2669.5,0.37458]
[1727114322905,2.1037741,2669.8,2669.7,0.37455]
[1727114323105,2.4635741,2669.8,2669.7,0.37455]
[1727114327412,2.1037741,2669.8,2669.7,0.37455]
[1727114328503,1.12264,2669.8,2669.7,0.37455]
[1727114328906,2.10380629,2669.8,2669.7,0.37455]
[1727114329211,0.37456,2669.7,2669.6,0.37455]
[1727114329512,1.35575783,2669.7,2669.6,0.37455]
[1727114329809,0.37459,2669.4,2669.3,1.3533821]
[1727114330304,0.37459,2669.4,2669.3,2.1887821]
[1727114330504,0.37459,2669.4,2669.3,1.3533921]
[1727114330826,1.09599,2669.4,2669.3,1.3533921]
[1727114331018,0.37461,2669.3,2669.2,0.9787821]
[1727114331307,0.37461,2669.3,2669.2,1.3534021]
[1727114331709,0.37461,2669.3,2669.2,0.9787821]
[1727114331911,0.37461,2669.3,2669.2,1.3534021]
[1727114334012,0.98141057,2669.5,2669.2,15.35497755]
[1727114334211,0.98141057,2669.7,2669.6,0.37456]
[1727114334400,0.98141057,2669.8,2669.7,0.37455]
[1727114334601,0.98141057,2669.8,2669.7,1.58455]
[1727114335110,2.13183057,2669.9,2669.8,0.37454]
[1727114335311,1.75731057,2669.9,2669.8,0.37454]
[1727114335515,2.13183057,2669.9,2669.8,0.37454]
[1727114336404,1.75731057,2669.9,2669.8,0.37454]
[1727114336806,2.13183057,2669.9,2669.8,0.37454]
[1727114338423,1.15042,2669.9,2669.8,0.37454]
[1727114338613,1.75687192,2669.9,2669.8,0.37454]
[1727114340608,2.13139192,2669.9,2669.8,0.37454]
[1727114340815,1.15042,2669.9,2669.8,0.37454]
[1727114341219,2.62363469,2669.9,2669.8,0.37454]
[1727114341418,1.15042,2669.9,2669.8,0.37454]
[1727114341713,0.7859,2669.9,2669.8,0.37454]